bitfinex/quotes_SOLUSD_20220113
["timestamp","ask_amount","ask_price","bid_price","bid_amount"]
[1642071634389,29.15436219,152.07,151.99,9.8671]
[1642071634892,29.15436219,152.07,151.99,10.1171]
[1642071635695,26.52436219,152.07,151.99,12.7471]
[1642071636297,0.25,152.07,151.99,12.7471]
[1642071636497,10.1169,152.08,151.99,12.7471]
[1642071636798,10.1169,152.08,152.0,23.2696]
[1642071636997,10.1169,152.08,152.0,89.1196]
[1642071637196,0.25,152.08,152.01,24.47651339]
[1642071637398,2.88,152.08,152.01,24.47651339]
[1642071637598,2.63,152.08,152.01,24.47651339]
[1642071637798,2.63,152.08,152.01,33.23251339]
[1642071637998,2.63,152.08,152.01,48.80251339]
[1642071638199,2.63,152.08,152.01,58.66841339]
[1642071639735,2.63,152.08,152.02,2.63]
[1642071640137,2.63,152.08,152.04,9.8637]
[1642071640338,2.63,152.08,152.05,2.63]
[1642071640541,2.63,152.08,152.06,6.06439993]
[1642071642939,2.63,152.12,152.06,6.06439993]
[1642071643340,12.7444,152.12,152.06,6.06439993]
[1642071644343,2.88,152.12,152.06,6.06439993]
[1642071644746,2.63,152.12,152.06,6.06439993]
[1642071645946,2.88,152.12,152.06,6.06439993]
[1642071647347,12.7442,152.12,152.06,6.06439993]
[1642071647550,12.7442,152.12,152.02,2.63]
[1642071648547,12.7442,152.12,152.01,23.40529872]
[1642071648946,36.4522,152.12,152.01,23.40529872]
[1642071652853,45.9522,152.12,152.01,23.40529872]
[1642071653953,45.7022,152.12,152.01,23.40529872]
[1642071654154,49.43085937,152.12,152.01,33.52129872]
[1642071654554,46.80085937,152.12,152.02,25.8123]
[1642071654953,43.0722,152.12,152.02,26.0623]
[1642071655355,43.3222,152.12,152.02,26.0623]
[1642071656353,43.3222,152.12,152.02,35.9274]
[1642071657355,47.05085937,152.12,152.02,26.0623]
[1642071658787,47.05085937,152.12,152.02,35.9277]
[1642071659190,43.3222,152.12,152.02,35.9277]
[1642071659389,45.9522,152.12,152.02,35.9277]
[1642071660292,49.68085937,152.12,152.02,35.9277]
[1642071663394,49.68085937,152.12,152.02,26.0623]
[1642071666595,7.4905395,152.11,152.02,26.0623]
[1642071666796,9.8663,152.09,152.02,26.0623]
[1642071667397,10.1163,152.09,152.02,2.63]
[1642071667597,2.63,152.08,152.02,2.63]
[1642071667997,2.88,152.08,152.02,2.63]
[1642071668397,25.426484,152.07,152.02,2.63]
[1642071668598,2.63,152.06,152.02,2.63]
[1642071668800,28.306484,152.07,152.02,2.63]
[1642071669214,9.8684,152.06,152.02,2.63]
[1642071669600,10.1184,152.06,152.02,2.63]
[1642071670501,10.1184,152.06,151.98,23.8729]
[1642071672102,2.63,152.05,151.98,23.8729]
[1642071672304,9.8698,152.04,151.98,23.8729]
[1642071672503,10.1198,152.04,151.98,23.8729]
[1642071675909,10.1198,152.04,151.98,29.8729]
[1642071676306,12.4987,152.05,151.99,28.40796691]
[1642071676506,25.426484,152.07,151.99,37.28796691]
[1642071676706,25.426484,152.07,151.99,47.15536691]
[1642071677734,25.676484,152.07,151.99,47.15536691]
[1642071679534,25.676484,152.07,151.99,41.15536691]
[1642071679733,25.676484,152.07,151.99,47.15536691]
[1642071679935,25.676484,152.07,151.99,41.15536691]
[1642071680338,25.676484,152.07,151.99,47.15536691]
[1642071680537,25.676484,152.07,151.99,41.15536691]
[1642071680941,0.25,152.07,151.99,41.15536691]
[1642071681139,10.1167,152.08,151.99,47.15536691]
[1642071682843,0.25,152.08,151.99,47.15536691]
[1642071683042,108.78093851,152.09,151.99,47.15536691]
[1642071683242,106.15093851,152.09,152.0,24.1326]
[1642071683445,106.15093851,152.09,152.0,33.9989]
[1642071683643,106.15093851,152.09,152.0,40.2489]
[1642071683844,32.53983851,152.09,152.0,40.2489]
[1642071688852,32.53983851,152.09,152.0,39.7489]
[1642071689953,32.53983851,152.09,152.0,39.4989]
[1642071690156,32.53983851,152.09,152.0,42.3789]
[1642071690554,32.53983851,152.09,152.0,36.3789]
[1642071693869,32.28983851,152.09,152.0,36.3789]
[1642071694570,32.28983851,152.09,152.0,42.3789]
[1642071695570,32.28983851,152.09,152.0,42.1289]
[1642071695989,32.53983851,152.09,152.0,42.1289]
[1642071696191,2.63,152.08,152.0,39.4989]
[1642071696489,12.747,152.08,152.0,39.4989]
[1642071696688,12.747,152.08,152.0,33.4989]
[1642071696889,12.747,152.08,152.0,23.6326]
[1642071698695,1.8811051,152.06,152.0,23.6326]
[1642071699092,11.9991051,152.06,152.0,23.6326]
[1642071699295,2.1311051,152.06,152.0,23.6326]
[1642071701196,11.9991051,152.06,152.0,23.6326]
[1642071701395,11.9991051,152.06,151.98,2.63]
[1642071701694,4.5111051,152.05,151.97,79.9397]
[1642071702095,4.7611051,152.05,151.97,79.9397]
[1642071702695,1.8811051,152.04,151.97,79.9397]
[1642071702898,28.30258655,152.03,151.97,79.9397]
[1642071703096,38.42238655,152.03,151.97,79.9397]
[1642071704597,40.30349165,152.03,151.97,79.9397]
[1642071709805,30.43369165,152.03,151.97,79.9397]
[1642071710706,28.55258655,152.03,151.97,79.9397]
[1642071711105,28.30258655,152.03,151.97,79.9397]
[1642071711906,38.17258655,152.03,151.97,79.9397]
[1642071712507,38.42258655,152.03,151.97,79.9397]
[1642071713213,40.30369165,152.03,151.97,79.9397]
[1642071716361,40.30369165,152.03,151.95,23.62]
[1642071716562,106.15369165,152.03,151.93,25.288]
[1642071716766,2.63,152.02,151.93,22.658]
[1642071716965,9.8736,151.98,151.93,22.658]
[1642071717361,25.40618438,151.97,151.93,22.658]
[1642071717562,25.65618438,151.97,151.93,22.658]
[1642071720166,25.65618438,151.97,151.92,75.3653]
[1642071720372,35.52998438,151.97,151.92,75.3653]
[1642071720565,35.52998438,151.97,151.89,25.6593]
[1642071721566,2.632,151.96,151.89,23.0273]
[1642071721768,9.8759,151.94,151.89,23.0273]
[1642071722070,10.1259,151.94,151.89,23.0273]
[1642071722866,0.25,151.94,151.89,23.0273]
[1642071723268,10.1251,151.95,151.89,23.0273]
[1642071724972,2.632,151.96,151.89,23.2773]
[1642071725272,25.40618438,151.97,151.89,23.2773]
[1642071726074,35.28058438,151.97,151.89,23.2773]
[1642071726274,35.28058438,151.97,151.89,25.9093]
[1642071727277,35.53058438,151.97,151.89,25.9093]
[1642071729882,35.53058438,151.97,151.89,25.6593]
[1642071730084,35.53058438,151.97,151.89,23.2773]
[1642071740222,35.53058438,151.97,151.89,23.0273]
[1642071742522,35.53058438,151.97,151.87,2.632]
[1642071742728,2.632,151.96,151.87,23.7164]
[1642071743022,9.8764,151.94,151.87,23.7164]
[1642071743422,10.1264,151.94,151.87,23.7164]
[1642071749725,10.1264,151.94,151.87,22.1964]
[1642071758063,2.633,151.93,151.87,22.1964]
[1642071758265,9.8778,151.91,151.87,22.1964]
[1642071758462,10.1278,151.91,151.87,22.1964]
[1642071758663,30.15502543,151.9,151.87,22.1964]
[1642071758863,30.15502543,151.9,151.88,3.03219996]
[1642071759163,30.40502543,151.9,151.87,22.1964]
[1642071759764,30.40502543,151.9,151.85,76.4418]
[1642071759965,30.40502543,151.9,151.82,27.374]
[1642071760171,30.40502543,151.9,151.85,9.8766]
[1642071760564,30.40502543,151.9,151.82,27.374]
[1642071760767,30.40502543,151.9,151.82,29.19811287]
[1642071760964,30.40502543,151.9,151.82,29.44811287]
[1642071761766,30.40502543,151.9,151.84,9.8771]
[1642071761966,30.40502543,151.9,151.84,10.1271]
[1642071762366,30.40502543,151.9,151.84,9.8771]
[1642071762565,30.40502543,151.9,151.82,26.56511287]
[1642071762765,30.40502543,151.9,151.82,26.81511287]
[1642071763166,30.40502543,151.9,151.82,24.991]
[1642071764267,30.40502543,151.9,151.83,9.8779]
[1642071764468,30.40502543,151.9,151.83,10.1279]
[1642071765471,30.40502543,151.9,151.84,12.51]
[1642071765871,30.40502543,151.9,151.84,12.76]
[1642071766272,30.40502543,151.9,151.84,10.127]
[1642071766971,30.40502543,151.9,151.84,9.877]
[1642071769076,30.40502543,151.9,151.83,9.8779]
[1642071769473,30.40502543,151.9,151.83,10.1279]
[1642071769873,40.28332543,151.9,151.83,10.1279]
[1642071770073,40.28332543,151.9,151.83,0.25]
[1642071770272,40.28332543,151.9,151.82,27.624]
[1642071770474,40.28332543,151.9,151.82,37.5025]
[1642071771015,40.03332543,151.9,151.82,37.5025]
[1642071771177,40.03332543,151.9,151.82,34.8695]
[1642071771574,40.03332543,151.9,151.82,24.741]
[1642071771973,2.634,151.89,151.82,24.741]
[1642071772173,9.8809,151.86,151.82,24.741]
[1642071772574,10.1309,151.86,151.82,24.741]
[1642071774674,12.5138,151.87,151.8,103.3053]
[1642071774874,44.17013053,151.9,151.81,2.634]
[1642071775075,39.65502543,151.9,151.81,26.6906]
[1642071775276,39.65502543,151.9,151.81,26.4406]
[1642071775480,39.65502543,151.9,151.81,26.6906]
[1642071776081,9.8792,151.88,151.81,26.6906]
[1642071776282,9.8792,151.88,151.81,24.0566]
[1642071776480,9.8792,151.88,151.81,26.6906]
[1642071776981,10.1292,151.88,151.81,26.6906]
[1642071781009,10.1292,151.88,151.81,36.5699]
[1642071781608,10.1292,151.88,151.81,23.8066]
[1642071782812,2.634,151.87,151.81,23.8066]
[1642071783012,9.8809,151.86,151.81,23.8066]
[1642071783418,10.1309,151.86,151.81,23.8066]
[1642071784213,0.25,151.86,151.81,23.8066]
[1642071784513,12.7641,151.87,151.81,23.8066]
[1642071784716,10.1301,151.87,151.81,23.8066]
[1642071789417,10.1301,151.87,151.77,2.634]
[1642071789418,19.6301,151.87,151.77,2.634]
[1642071789618,2.634,151.86,151.77,2.634]
[1642071789818,9.8833,151.82,151.77,2.634]
[1642071790018,10.1333,151.82,151.77,2.634]
[1642071790416,17.1753,151.82,151.77,2.634]
[1642071790617,31.27847438,151.81,151.76,2.634]
[1642071790817,41.16247438,151.81,151.76,2.634]
[1642071791017,41.41247438,151.81,151.76,2.634]
[1642071792319,41.41247438,151.81,151.75,98.18041287]
[1642071798629,31.52847438,151.81,151.75,98.18041287]
[1642071799532,31.52847438,151.81,151.75,108.06361287]
[1642071799933,31.52847438,151.81,151.75,98.18041287]
[1642071800732,31.27847438,151.81,151.75,98.18041287]
[1642071800932,31.27847438,151.81,151.75,98.43041287]
[1642071801332,31.27847438,151.81,151.76,2.634]
[1642071802133,31.52847438,151.81,151.75,108.06311287]
[1642071802934,41.41217438,151.81,151.75,98.18041287]
[1642071807443,41.16217438,151.81,151.75,98.18041287]
[1642071808846,2.634,151.8,151.75,1.82411287]
[1642071809147,9.8876,151.78,151.75,1.82411287]
[1642071809349,48.634,151.77,151.72,3.74072085]
[1642071809552,57.114,151.77,151.72,3.74072085]
[1642071809949,32.9656,151.76,151.72,3.74072085]
[1642071810148,29.97819546,151.74,151.72,3.74072085]
[1642071810548,30.22819546,151.74,151.72,3.74072085]
[1642071811148,40.11639546,151.74,151.72,3.74072085]
[1642071811548,39.86639546,151.74,151.72,3.74072085]
[1642071811749,40.11639546,151.74,151.72,3.74072085]
[1642071811950,39.86639546,151.74,151.72,3.74072085]
[1642071812148,2.636,151.78,151.73,6.06439993]
[1642071812376,4.28512182,151.78,151.73,6.06439993]
[1642071813277,9.8879,151.75,151.73,6.06439993]
[1642071813475,10.1379,151.75,151.73,6.06439993]
[1642071813876,10.1379,151.75,151.72,3.74072085]
[1642071814275,10.1379,151.75,151.73,6.06439993]
[1642071814979,10.1379,151.75,151.72,3.74072085]
[1642071815780,10.1379,151.75,151.73,3.03219997]
[1642071816079,10.1379,151.75,151.73,6.06439993]
[1642071817583,10.1379,151.75,151.72,3.74072085]
[1642071819487,10.1379,151.75,151.7,0.32947051]
[1642071820886,9.8906,151.72,151.7,0.32947051]
[1642071821089,27.11247991,151.71,151.7,0.32947051]
[1642071821486,27.36247991,151.71,151.7,0.32947051]
[1642071822288,37.25287991,151.71,151.7,0.32947051]
[1642071826192,37.00287991,151.71,151.7,0.32947051]
[1642071827592,37.25287991,151.71,151.7,0.32947051]
[1642071827793,12.7764,151.71,151.6,2.636]
[1642071828097,22.2764,151.71,151.61,23.1892]
[1642071828394,45.3645,151.71,151.61,23.1892]
[1642071828893,30.78685843,151.7,151.61,23.1892]
[1642071829094,9.8924,151.68,151.61,23.1892]
[1642071829295,19.3924,151.68,151.61,23.1892]
[1642071829493,19.6424,151.68,151.61,23.1892]
[1642071831323,19.6424,151.68,151.6,2.636]
[1642071831622,19.6424,151.68,151.59,75.0383]
[1642071831823,19.6424,151.68,151.59,75.2883]
[1642071832429,19.6424,151.68,151.6,24.123]
[1642071834826,9.8944,151.65,151.6,24.123]
[1642071835028,23.91518255,151.64,151.59,75.0383]
[1642071835226,23.91518255,151.64,151.59,2.637]
[1642071835427,24.16518255,151.64,151.59,2.637]
[1642071835828,24.16518255,151.64,151.58,26.291]
[1642071836027,34.05988255,151.64,151.58,26.291]
[1642071836226,24.16518255,151.64,151.58,36.185]
[1642071836425,24.16518255,151.64,151.58,23.653]
[1642071836827,24.16518255,151.64,151.58,23.903]
[1642071837028,24.16518255,151.64,151.58,23.653]
[1642071837228,34.05978255,151.64,151.58,23.653]
[1642071837428,34.05978255,151.64,151.58,23.903]
[1642071837731,34.05978255,151.64,151.58,48.1045]
[1642071837930,34.05978255,151.64,151.58,24.4515]
[1642071838128,34.05978255,151.64,151.58,24.2015]
[1642071840129,34.05978255,151.64,151.56,2.638]
[1642071840332,34.05978255,151.64,151.56,2.888]
[1642071840932,34.05978255,151.64,151.56,2.638]
[1642071841430,34.05978255,151.64,151.56,2.138]
[1642071841631,2.638,151.63,151.56,2.138]
[1642071841834,9.8964,151.62,151.56,2.138]
[1642071842031,9.8964,151.62,151.55,116.5713]
[1642071842032,10.1464,151.62,151.55,126.4674]
[1642071842434,2.388,151.63,151.55,126.7174]
[1642071842635,49.12688255,151.64,151.55,126.7174]
[1642071843033,49.12688255,151.64,151.55,33.8174]
[1642071843234,9.8953,151.63,151.55,23.9213]
[1642071844336,10.1453,151.63,151.55,23.9213]
[1642071845237,19.6453,151.63,151.55,23.9213]
[1642071846341,19.6453,151.63,151.55,33.8174]
[1642071846742,19.6453,151.63,151.55,23.9213]
[1642071847947,19.6453,151.63,151.55,23.9413]
[1642071849880,19.6453,151.63,151.55,23.6913]
[1642071854691,9.8991,151.59,151.55,0.02]
[1642071855091,9.5,151.58,151.55,0.02]
[1642071855492,9.75,151.58,151.55,0.02]
[1642071855691,28.6579596,151.57,151.55,0.02]
[1642071856090,28.9079596,151.57,151.55,0.02]
[1642071856491,38.8082596,151.57,151.55,0.02]
[1642071860499,41.4462596,151.57,151.55,0.02]
[1642071863237,50.9462596,151.57,151.55,0.02]
[1642071863638,50.9462596,151.57,151.48,27.4555]
[1642071863840,50.9462596,151.57,151.48,24.8175]
[1642071864442,116.7962596,151.57,151.46,2.71762902]
[1642071864642,1.64912182,151.56,151.46,2.71762902]
[1642071864843,12.14,151.55,151.46,0.07962902]
[1642071865043,9.9052,151.51,151.46,0.07962902]
[1642071865344,2.64,151.5,151.46,0.07962902]
[1642071865543,28.31733976,151.49,151.46,0.07962902]
[1642071865945,28.56733976,151.49,151.46,0.07962902]
[1642071866343,9.9056,151.48,151.46,0.07962902]
[1642071866547,10.1556,151.48,151.46,0.07962902]
[1642071867545,12.7956,151.48,151.46,0.07962902]
[1642071868746,10.1556,151.48,151.46,0.07962902]
[1642071869649,12.7956,151.48,151.46,0.07962902]
[1642071877988,22.2956,151.48,151.46,0.07962902]
[1642071878190,22.2956,151.48,151.46,1e-08]
[1642071879591,118.96199521,151.47,151.46,1e-08]
[1642071879790,141.01209521,151.47,151.46,1e-08]
[1642071879990,141.26209521,151.47,151.46,1e-08]
[1642071880889,141.26209521,151.47,151.42,0.16510868]
[1642071881089,2.641,151.46,151.42,0.16510868]
[1642071881290,9.9109,151.44,151.42,0.16510868]
[1642071881490,12.8019,151.44,151.42,0.16510868]
[1642071881693,28.05181088,151.43,151.42,0.16510868]
[1642071882091,28.30181088,151.43,151.42,0.16510868]
[1642071882891,38.21241088,151.43,151.42,0.16510868]
[1642071884692,47.71241088,151.43,151.42,0.16510868]
[1642071885992,47.71241088,151.43,151.33,2.641]
[1642071886694,47.71241088,151.43,151.35,24.775]
[1642071887495,47.71241088,151.43,151.33,2.641]
[1642071887696,9.9115,151.39,151.33,2.641]
[1642071888098,10.1615,151.39,151.33,2.641]
[1642071889100,10.1615,151.39,151.32,2.642]
[1642071889404,10.1615,151.39,151.32,2.142]
[1642071890299,10.1615,151.39,151.31,27.3339]
[1642071890499,10.1615,151.39,151.31,24.6919]
[1642071891602,2.642,151.38,151.31,24.6919]
[1642071891799,9.9135,151.36,151.31,24.6919]
[1642071892001,10.1635,151.36,151.31,24.6919]
[1642071894199,12.8055,151.36,151.31,24.6919]
[1642071894802,2.892,151.36,151.31,24.6919]
[1642071895003,2.642,151.36,151.31,24.6919]
[1642071895201,34.11191939,151.37,151.31,24.6919]
[1642071896000,33.61191939,151.37,151.31,24.6919]
[1642071899335,33.86191939,151.37,151.31,24.6919]
[1642071900539,33.61191939,151.37,151.31,27.3339]
[1642071900738,33.61191939,151.37,151.31,24.6919]
[1642071901538,33.86191939,151.37,151.31,24.6919]
[1642071905041,33.61191939,151.37,151.31,24.6919]
[1642071906545,33.86191939,151.37,151.31,24.6919]
[1642071910547,23.94901939,151.37,151.31,24.6919]
[1642071911750,23.94901939,151.37,151.31,34.6038]
[1642071911948,23.94901939,151.37,151.31,24.6919]
[1642071912951,26.59101939,151.37,151.31,24.6919]
[1642071913250,23.94901939,151.37,151.31,24.6919]
[1642071913850,43.36211939,151.37,151.31,24.6919]
[1642071915457,33.44901939,151.37,151.31,24.6919]
[1642071916055,23.69901939,151.37,151.31,24.6919]
[1642071916455,33.19901939,151.37,151.31,24.6919]
[1642071916856,23.69901939,151.37,151.31,24.6919]
[1642071917296,33.19901939,151.37,151.31,34.6038]
[1642071917756,9.5,151.37,151.31,34.6038]
[1642071918456,12.5541,151.39,151.31,34.6038]
[1642071920059,9.5,151.38,151.31,34.6038]
[1642071920758,9.5,151.38,151.32,27.16056712]
[1642071920962,2.642,151.45,151.32,43.32176712]
[1642071921159,2.642,151.45,151.33,33.2315]
[1642071921360,2.642,151.46,151.33,34.33075171]
[1642071921558,2.642,151.46,151.34,72.0648]
[1642071921959,23.81127511,151.45,151.34,72.3148]
[1642071922162,23.81127511,151.45,151.37,9.908]
[1642071922360,23.81127511,151.45,151.35,25.8705]
[1642071922559,2.642,151.44,151.35,23.2285]
[1642071922961,2.892,151.44,151.35,23.2285]
[1642071924261,12.8014,151.44,151.35,23.2285]
[1642071924460,12.5514,151.44,151.35,23.2285]
[1642071924662,2.642,151.44,151.36,9.5]
[1642071924862,23.81127511,151.45,151.36,9.5]
[1642071924863,23.81127511,151.45,151.37,2.642]
[1642071925062,23.81127511,151.45,151.37,23.3765]
[1642071925262,2.641,151.44,151.37,23.3765]
[1642071925864,2.891,151.44,151.37,23.3765]
[1642071927662,0.25,151.44,151.37,23.3765]
[1642071927964,33.97027511,151.45,151.37,23.3765]
[1642071929671,24.06127511,151.45,151.37,23.3765]
[1642071929865,24.06127511,151.45,151.37,33.2842]
[1642071931970,33.96977511,151.45,151.37,23.3765]
[1642071932800,2.641,151.44,151.37,23.3765]
[1642071932997,2.891,151.44,151.37,23.3765]
[1642071933200,12.8002,151.44,151.37,23.3765]
[1642071934099,2.891,151.44,151.37,23.3765]
[1642071935601,2.891,151.44,151.37,33.2843]
[1642071935900,2.891,151.44,151.37,63.43817544]
[1642071937103,2.891,151.44,151.37,33.2843]
[1642071937302,2.891,151.44,151.37,23.3765]
[1642071939505,12.8002,151.44,151.34,73.95225344]
[1642071939707,9.5,151.43,151.34,73.95225344]
[1642071939912,2.642,151.42,151.34,73.95225344]
[1642071940211,26.81915457,151.41,151.34,73.95225344]
[1642071940412,2.642,151.4,151.34,72.0648]
[1642071940810,2.892,151.4,151.34,72.0648]
[1642071942311,2.892,151.4,151.34,53.786499]
[1642071942312,12.8034,151.4,151.34,53.786499]
[1642071943813,12.8034,151.4,151.31,22.6781]
[1642071944018,37.3166,151.4,151.31,22.6781]
[1642071946022,12.8034,151.4,151.31,22.6781]
[1642071946219,12.8034,151.4,151.31,25.3201]
[1642071946420,12.5534,151.4,151.31,25.3201]
[1642071947822,12.8034,151.4,151.31,25.3201]
[1642071948223,12.8034,151.4,151.31,35.2319]
[1642071948421,12.8034,151.4,151.31,32.5899]
[1642071951424,12.5534,151.4,151.31,32.5899]
[1642071952928,12.8034,151.4,151.31,35.2319]
[1642071953226,12.8034,151.4,151.31,44.7319]
[1642071953827,12.8034,151.4,151.31,42.0899]
[1642071954933,10.1614,151.4,151.32,2.642]
[1642071955133,33.0622,151.4,151.32,22.053]
[1642071955539,9.9114,151.4,151.32,22.053]
[1642071955734,10.1614,151.4,151.33,24.9438]
[1642071956135,9.9114,151.4,151.33,24.9438]
[1642071956335,10.1614,151.4,151.33,24.9438]
[1642071956735,26.81915457,151.41,151.33,34.8543]
[1642071956937,26.81915457,151.41,151.33,100.7043]
[1642071957135,27.06915457,151.41,151.33,100.7043]
[1642071957342,26.81915457,151.41,151.33,100.7043]
[1642071958663,27.06915457,151.41,151.34,41.00897183]
[1642071958863,27.06915457,151.41,151.34,53.56047183]
[1642071959067,0.25,151.41,151.34,53.56047183]
[1642071959264,0.25,151.41,151.35,23.5148]
[1642071959464,25.1278,151.43,151.35,33.0148]
[1642071959965,0.25,151.43,151.35,33.0148]
[1642071960370,29.0842379,151.44,151.36,2.642]
[1642071960574,0.25,151.44,151.37,25.93965548]
[1642071960767,0.25,151.44,151.38,23.9609]
[1642071961266,0.25,151.44,151.38,33.868]
[1642071961566,29.24726983,151.45,151.37,25.93965548]
[1642071961767,2.641,151.43,151.35,11.38745344]
[1642071961966,0.25,151.43,151.35,11.38745344]
[1642071962366,0.25,151.43,151.35,21.29655344]
[1642071962566,0.25,151.43,151.35,19.4091]
[1642071963169,28.73566671,151.42,151.35,19.4091]
[1642071963367,26.09366671,151.42,151.35,19.4091]
[1642071963568,2.642,151.41,151.35,19.4091]
[1642071963968,2.892,151.41,151.35,19.4091]
[1642071965773,26.09366671,151.42,151.35,19.4091]
[1642071966870,26.09366671,151.42,151.35,19.10443612]
[1642071967072,26.34366671,151.42,151.35,19.10443612]
[1642071971376,2.642,151.43,151.35,19.35443612]
[1642071971576,28.58869686,151.46,151.38,9.9072]
[1642071972375,27.42173364,151.45,151.36,27.4912]
[1642071972577,2.641,151.44,151.36,36.9912]
[1642071972776,2.641,151.44,151.36,46.8997]
[1642071973475,2.891,151.44,151.36,46.8997]
[1642071974276,12.7997,151.44,151.36,46.8997]
[1642071975579,12.7997,151.44,151.36,34.3492]
[1642071977082,12.7997,151.44,151.36,24.8492]
[1642071986524,14.46839686,151.44,151.36,24.8492]
[1642071991337,1.66869686,151.43,151.36,24.8492]
[1642071991534,39.84044519,151.42,151.36,24.8492]
[1642071991933,40.09044519,151.42,151.36,24.8492]
[1642071992735,30.18074519,151.42,151.36,24.8492]
[1642071994236,30.18074519,151.42,151.36,34.7578]
[1642071994634,30.18074519,151.42,151.36,24.8492]
[1642071994834,2.642,151.42,151.36,24.8492]
[1642071995036,1.66869686,151.43,151.36,24.8492]
[1642071995838,25.55060324,151.43,151.36,24.8492]
[1642071996339,24.13190638,151.43,151.36,34.7578]
[1642072000340,24.13190638,151.43,151.36,24.8492]
[1642072001245,24.13190638,151.43,151.36,24.3492]
[1642072001446,34.04080638,151.43,151.36,24.3492]
[1642072003350,35.70950324,151.43,151.36,24.3492]
[1642072003576,12.5519,151.42,151.36,24.3492]
[1642072003979,12.8019,151.42,151.36,24.3492]
[1642072009382,12.8019,151.42,151.33,78.6439]
[1642072009582,36.3601,151.42,151.33,78.6439]
[1642072010883,38.02879686,151.42,151.33,78.6439]
[1642072011084,38.02879686,151.42,151.33,76.0019]
[1642072011283,38.02879686,151.42,151.34,23.1789]
[1642072011887,4.31069686,151.42,151.34,98.9387]
[1642072012086,4.31069686,151.42,151.34,33.3387]
[1642072012288,4.31069686,151.42,151.35,9.5]
[1642072012489,23.88190638,151.43,151.35,9.5]
[1642072012686,26.52390638,151.43,151.36,23.0035]
[1642072012887,36.43290638,151.43,151.36,23.0035]
[1642072013088,26.52390638,151.43,151.36,23.0035]
[1642072013690,23.88190638,151.43,151.36,23.0035]
[1642072014187,23.88190638,151.43,151.36,32.9122]
[1642072015091,23.88190638,151.43,151.37,2.642]
[1642072015290,23.88190638,151.43,151.38,9.9072]
[1642072015689,23.88190638,151.43,151.37,2.642]
[1642072015890,23.88190638,151.43,151.36,25.6455]
[1642072016691,23.88190638,151.43,151.36,35.554]
[1642072020894,1.66869686,151.45,151.36,35.554]
[1642072021096,1.66869686,151.45,151.36,35.804]
[1642072021097,1.91869686,151.45,151.36,35.804]
[1642072021700,1.91869686,151.45,151.37,9.5]
[1642072022096,0.25,151.45,151.39,9.9063]
[1642072022325,0.25,151.45,151.39,33.3565]
[1642072022526,26.57195906,151.46,151.39,33.3565]
[1642072025530,36.47905906,151.46,151.39,33.3565]
[1642072026030,36.47905906,151.46,151.39,23.4502]
[1642072026230,2.641,151.45,151.39,23.4502]
[1642072026431,28.96295906,151.46,151.39,23.4502]
[1642072026632,1.66869686,151.45,151.39,23.4502]
[1642072027231,1.66869686,151.45,151.39,33.3569]
[1642072027832,26.32195906,151.46,151.39,33.3569]
[1642072028032,26.57195906,151.46,151.39,23.4502]
[1642072028433,36.47895906,151.46,151.39,23.4502]
[1642072029033,36.47895906,151.46,151.38,2.641]
[1642072029238,2.641,151.45,151.38,2.641]
[1642072029639,9.9093,151.43,151.38,2.641]
[1642072029842,29.37053504,151.42,151.36,23.0961]
[1642072030035,29.62053504,151.42,151.36,23.0961]
[1642072030636,39.53023504,151.42,151.36,23.0961]
[1642072031037,29.62053504,151.42,151.36,23.0961]
[1642072032742,39.53013504,151.42,151.36,23.0961]
[1642072032941,2.642,151.41,151.36,23.0961]
[1642072033340,2.892,151.41,151.33,76.0019]
[1642072033579,2.892,151.41,151.34,24.8358]
[1642072033944,12.8022,151.41,151.34,24.8358]
[1642072034345,12.5522,151.41,151.34,24.8358]